bitfinex/quotes_BTCUSD_20250414
["timestamp","ask_amount","ask_price","bid_price","bid_amount"]
[1744610785225,0.189744,84324.0,84323.0,6e-07]
[1744610785430,0.189744,84324.0,84321.0,6e-07]
[1744610785431,0.1,84322.0,84321.0,6e-07]
[1744610785626,0.56321077,84322.0,84321.0,6e-07]
[1744610785875,0.56084154,84322.0,84321.0,6e-07]
[1744610786041,0.58157002,84322.0,84321.0,6e-07]
[1744610786255,0.56094009,84322.0,84321.0,6e-07]
[1744610787237,0.56996147,84322.0,84321.0,6e-07]
[1744610787681,0.57296147,84322.0,84321.0,6e-07]
[1744610788244,0.47296147,84322.0,84321.0,6e-07]
[1744610788489,0.69368995,84322.0,84321.0,6e-07]
[1744610788697,0.69768995,84322.0,84321.0,6e-07]
[1744610789129,1.01362864,84322.0,84321.0,6e-07]
[1744610789434,1.05354101,84322.0,84321.0,6e-07]
[1744610790584,1.05354101,84322.0,84291.0,0.002]
[1744610790585,0.530775,84310.0,84309.0,2e-07]
[1744610790751,1.22003523,84310.0,84309.0,2e-07]
[1744610792194,1.22603523,84310.0,84309.0,0.0010002]
[1744610792396,1.07255523,84310.0,84309.0,0.0010002]
[1744610792567,1.22603523,84310.0,84309.0,0.0010002]
[1744610793132,1.22303523,84310.0,84309.0,2e-07]
[1744610793378,1.26913523,84310.0,84309.0,2e-07]
[1744610793561,1.27013523,84310.0,84309.0,2e-07]
[1744610793922,1.27213523,84310.0,84309.0,2e-07]
[1744610794267,1.39086371,84310.0,84309.0,2e-07]
[1744610794589,1.27013523,84310.0,84309.0,2e-07]
[1744610794742,1.26613523,84310.0,84309.0,2e-07]
[1744610795105,1.26913523,84310.0,84309.0,2e-07]
[1744610795380,1.26613523,84310.0,84309.0,2e-07]
[1744610795674,1.27513523,84310.0,84309.0,0.0010002]
[1744610795903,1.39586371,84310.0,84309.0,0.0010002]
[1744610796104,1.27113523,84310.0,84309.0,0.0010002]
[1744610796379,1.27513523,84310.0,84309.0,0.0010002]
[1744610797280,1.22903523,84310.0,84309.0,0.0010002]
[1744610798237,0.76819369,84310.0,84309.0,0.0010002]
[1744610798681,1.10819369,84310.0,84309.0,0.0010002]
[1744610798884,0.57841869,84310.0,84309.0,0.0010002]
[1744610799197,0.91441869,84310.0,84309.0,0.0010002]
[1744610799443,0.351861,84309.0,84304.0,0.201649]
[1744610799994,0.011861,84308.0,84305.0,0.011861]
[1744610800192,0.001,84310.0,84307.0,0.201641]
[1744610801015,0.01186,84316.0,84312.0,0.01186]
[1744610801330,0.01186,84316.0,84313.0,0.01186]
[1744610801552,0.01186,84314.0,84310.0,0.01186]
[1744610801749,0.01186,84314.0,84311.0,0.01186]
[1744610802525,0.01186,84314.0,84313.0,0.001]
[1744610803051,0.01186,84314.0,84311.0,0.01186]
[1744610803496,0.01186,84315.0,84311.0,0.01186]
[1744610803691,0.01186,84314.0,84311.0,0.01186]
[1744610804393,0.01186,84314.0,84311.0,0.01386]
[1744610805057,0.34009855,84322.0,84316.0,0.20162]
[1744610805273,0.34009855,84322.0,84319.0,0.011859]
[1744610805480,0.34009855,84322.0,84320.0,0.189753]
[1744610805677,9.855e-05,84322.0,84320.0,0.2006456]
[1744610806305,9.855e-05,84322.0,84320.0,0.20301741]
[1744610806621,9.855e-05,84322.0,84320.0,0.2006456]
[1744610807528,9.855e-05,84322.0,84320.0,0.0108926]
[1744610807529,0.18984855,84322.0,84320.0,0.0108926]
[1744610807745,9.855e-05,84322.0,84320.0,0.0108926]
[1744610807936,9.855e-05,84322.0,84320.0,0.002]
[1744610808139,9.855e-05,84322.0,84321.0,0.01083861]
[1744610808342,9.855e-05,84322.0,84321.0,0.20058961]
[1744610808506,9.855e-05,84322.0,84321.0,0.01083861]
[1744610808708,9.855e-05,84322.0,84321.0,0.20058961]
[1744610809927,9.855e-05,84322.0,84321.0,0.01183861]
[1744610810454,9.855e-05,84322.0,84321.0,0.20158961]
[1744610810656,9.855e-05,84322.0,84321.0,0.20358961]
[1744610811759,9.855e-05,84322.0,84321.0,0.01383861]
[1744610814711,9.855e-05,84322.0,84321.0,0.13468015]
[1744610814935,0.01108148,84322.0,84321.0,0.13468015]
[1744610815799,9.855e-05,84322.0,84321.0,0.13468015]
[1744610816038,0.00984234,84334.0,84331.0,0.011858]
[1744610816237,0.00984234,84334.0,84332.0,0.189726]
[1744610816399,0.00984234,84334.0,84332.0,0.20054987]
[1744610816880,0.201576,84335.0,84332.0,0.01082387]
[1744610817076,0.011857,84335.0,84332.0,0.01082387]
[1744610817282,0.001,84334.0,84332.0,0.01082387]
[1744610817598,0.002,84334.0,84332.0,0.01082387]
[1744610817799,0.189724,84333.0,84332.0,0.01082387]
[1744610817980,0.189724,84333.0,84331.0,0.00013833]
[1744610818180,0.189724,84333.0,84332.0,0.01083808]
[1744610819679,0.19209323,84333.0,84332.0,0.01083808]
[1744610819878,0.19309323,84333.0,84332.0,0.01083808]
[1744610820118,0.19309323,84333.0,84331.0,0.00013833]
[1744610820335,0.19409323,84333.0,84331.0,0.00013833]
[1744610820523,0.19409323,84333.0,84332.0,0.01079093]
[1744610821038,0.19409323,84333.0,84331.0,0.00013833]
[1744610821247,0.19309323,84333.0,84331.0,0.00013833]
[1744610821387,0.19409323,84333.0,84331.0,0.00013833]
[1744610821830,0.19309323,84333.0,84331.0,0.00013833]
[1744610822044,0.19509323,84333.0,84331.0,0.00013833]
[1744610822250,0.19509323,84333.0,84332.0,0.01079083]
[1744610822475,0.19509323,84333.0,84331.0,0.00013833]
[1744610822820,0.19509323,84333.0,84332.0,0.01079083]
[1744610823016,0.19509323,84333.0,84331.0,0.00013833]
[1744610823253,0.19209323,84333.0,84331.0,0.00013833]
[1744610823490,0.19409323,84333.0,84331.0,0.00013833]
[1744610823851,0.19309323,84333.0,84331.0,0.00013833]
[1744610824065,0.19409323,84333.0,84332.0,0.0107872]
[1744610824266,0.19409323,84333.0,84331.0,0.00013833]
[1744610825113,0.19309323,84333.0,84331.0,0.00013833]
[1744610825251,0.02197563,84332.0,84331.0,0.00013833]
[1744610826155,0.45827563,84332.0,84331.0,0.00013833]
[1744610826982,0.45927563,84332.0,84331.0,0.00013833]
[1744610827194,0.46027563,84332.0,84331.0,0.00013833]
[1744610827660,0.58111717,84332.0,84331.0,0.00013833]
[1744610828640,0.59211618,84332.0,84331.0,0.00013833]
[1744610828856,1.00805487,84332.0,84331.0,0.00013833]
[1744610829082,1.09181952,84332.0,84331.0,3.3e-07]
[1744610829256,0.626071,84312.0,84311.0,0.001965]
[1744610829411,0.63707001,84312.0,84311.0,0.00242622]
[1744610829611,0.54077001,84312.0,84311.0,0.00242622]
[1744610829838,0.37297464,84312.0,84311.0,0.00242622]
[1744610830001,0.35099901,84312.0,84311.0,0.00242622]
[1744610830403,0.35299901,84312.0,84311.0,0.00242622]
[1744610830935,0.35099901,84312.0,84311.0,0.00242622]
[1744610831385,0.372995,84312.0,84311.0,0.00242622]
[1744610833153,0.59892818,84312.0,84311.0,0.00242622]
[1744610833397,0.69892818,84312.0,84311.0,0.00242622]
[1744610833577,1.11486687,84312.0,84311.0,0.00242622]
[1744610833789,1.11586687,84312.0,84311.0,0.00242622]
[1744610833957,1.11786687,84312.0,84311.0,0.00242622]
[1744610834695,1.1298875,84312.0,84311.0,0.00242622]
[1744610834924,1.0268875,84312.0,84311.0,0.00242622]
[1744610835092,1.1288875,84312.0,84311.0,0.00242622]
[1744610835291,1.0298875,84312.0,84311.0,0.00242622]
[1744610836487,1.1298875,84312.0,84311.0,0.00242622]
[1744610836683,1.15061598,84312.0,84311.0,0.00242622]
[1744610836946,0.6898875,84312.0,84311.0,0.00242622]
[1744610837324,0.035995,84312.0,84311.0,0.00242622]
[1744610837508,0.20377001,84312.0,84311.0,0.00242622]
[1744610837706,0.20377001,84312.0,84311.0,0.01336865]
[1744610837910,0.20377001,84312.0,84311.0,0.00242622]
[1744610838381,0.190771,84312.0,84311.0,0.00242622]
[1744610838796,0.189771,84312.0,84311.0,0.00242622]
[1744610839673,0.19214023,84312.0,84311.0,0.00342622]
[1744610839926,0.31298177,84312.0,84311.0,0.00342622]
[1744610840120,0.31061254,84312.0,84311.0,0.00342622]
[1744610840300,0.33255794,84312.0,84311.0,0.00342622]
[1744610840475,0.34353064,84312.0,84311.0,0.00342622]
[1744610841016,0.34353064,84312.0,84311.0,0.00242622]
[1744610841220,0.34553064,84312.0,84311.0,0.00242622]
[1744610841923,0.76246933,84312.0,84311.0,0.00242622]
[1744610842319,0.74052393,84312.0,84311.0,0.00242622]
[1744610843488,0.72955123,84312.0,84311.0,0.00242622]
[1744610844091,0.88547123,84312.0,84311.0,0.00242622]
[1744610844707,1.27357123,84312.0,84311.0,0.00242622]
[1744610845673,1.28454401,84312.0,84311.0,0.00242622]
[1744610847996,1.36189815,84312.0,84311.0,0.00242622]
[1744610848410,1.38385193,84312.0,84311.0,0.00242622]
[1744610848645,1.30649779,84312.0,84311.0,0.00242622]
[1744610848856,1.35449779,84312.0,84311.0,0.00242622]
[1744610852090,1.25839779,84312.0,84311.0,0.00242622]
[1744610852244,1.26983779,84312.0,84311.0,0.00242622]
[1744610852668,0.18861945,84298.0,84297.0,0.0004226]
[1744610852846,0.21103732,84298.0,84297.0,0.0004226]
[1744610853248,0.68522087,84298.0,84297.0,0.0004226]
[1744610853452,0.68285164,84298.0,84297.0,0.0004226]
[1744610853762,1.09879033,84298.0,84297.0,0.0004226]
[1744610854133,1.09879033,84298.0,84297.0,0.0034226]
[1744610857416,0.97794879,84298.0,84297.0,0.0034226]
[1744610857843,0.44932934,84298.0,84297.0,0.0034226]
[1744610858126,0.42737556,84298.0,84297.0,0.0034226]
[1744610858345,0.42737556,84298.0,84297.0,0.01440636]
[1744610859406,0.41640278,84298.0,84297.0,0.01440636]
[1744610859712,0.00046409,84298.0,84297.0,0.01440636]
[1744610861061,0.19026609,84298.0,84297.0,0.01440636]
[1744610861271,0.19026609,84298.0,84297.0,0.0034226]
[1744610861894,0.2012712,84298.0,84297.0,0.0034226]
[1744610862294,0.20364043,84298.0,84297.0,0.0034226]
[1744610868237,0.20364043,84298.0,84297.0,0.0004226]
[1744610875824,0.2012712,84298.0,84297.0,0.0004226]
[1744610876457,0.20364043,84298.0,84297.0,0.0004226]
[1744610876813,0.2012712,84298.0,84297.0,0.0004226]
[1744610878101,0.2012712,84298.0,84297.0,0.0114208]
[1744610878300,0.0114692,84298.0,84297.0,0.0004226]
[1744610878525,0.0114692,84298.0,84297.0,0.0114208]
[1744610878721,0.0114692,84298.0,84297.0,0.0004226]
[1744610878958,0.0114692,84298.0,84297.0,0.0114208]
[1744610879170,0.0114692,84298.0,84297.0,0.0004226]
[1744610879361,0.0114692,84298.0,84297.0,0.0114208]
[1744610879560,0.0114692,84298.0,84297.0,0.0004226]
[1744610879783,0.0114692,84298.0,84297.0,0.0114208]
[1744610880123,0.0114692,84298.0,84297.0,0.0004226]
[1744610880808,0.2012712,84298.0,84297.0,0.0004226]
[1744610882981,0.19026609,84298.0,84297.0,0.0004226]
[1744610883181,0.19026609,84298.0,84297.0,0.01141335]
[1744610884315,0.19026609,84298.0,84297.0,0.0004226]
[1744610885890,0.20128035,84298.0,84297.0,0.0004226]
[1744610886577,0.24848035,84298.0,84297.0,0.0004226]
[1744610888555,0.58848035,84298.0,84297.0,0.0004226]
[1744610890159,0.58948035,84298.0,84297.0,0.0004226]
[1744610890351,0.59148035,84298.0,84297.0,0.0004226]
[1744610891179,0.58046609,84298.0,84297.0,0.0004226]
[1744610891650,0.59147982,84298.0,84297.0,0.0004226]
[1744610892021,0.75627982,84298.0,84297.0,0.0004226]
[1744610894754,1.17221851,84298.0,84297.0,0.0004226]
[1744610895148,1.12501851,84298.0,84297.0,0.0004226]
[1744610895639,0.77041651,84298.0,84297.0,0.1902276]
[1744610896044,0.77041651,84298.0,84297.0,0.01145712]
[1744610896388,0.76941651,84298.0,84297.0,0.0004226]
[1744610896604,0.76741651,84298.0,84297.0,0.0004226]
[1744610897204,0.81461651,84298.0,84297.0,0.0004226]
[1744610899878,0.97941651,84298.0,84297.0,0.0004226]
[1744610900144,0.93221651,84298.0,84297.0,0.0004226]
[1744610902736,1.10185805,84298.0,84297.0,0.0004226]
[1744610903167,1.14795805,84298.0,84297.0,0.0004226]
[1744610905364,1.15095805,84298.0,84297.0,0.0004226]
[1744610906727,1.10485805,84298.0,84297.0,0.0004226]
[1744610906924,1.10685805,84298.0,84297.0,0.0004226]
[1744610907075,1.05805805,84298.0,84297.0,0.0004226]
[1744610907420,1.11108702,84298.0,84297.0,0.0004226]
[1744610907561,1.10007329,84298.0,84297.0,0.0004226]
[1744610907767,0.011863,84294.0,84291.0,0.002]
[1744610908007,0.00236923,84293.0,84291.0,0.002]
[1744610908586,0.34,84292.0,84291.0,0.002]
[1744610909955,0.97168023,84292.0,84291.0,0.002]
[1744610910182,0.97268023,84292.0,84291.0,0.002]
[1744610910832,0.92658023,84292.0,84291.0,0.002]
[1744610911397,0.92758023,84292.0,84291.0,0.002]
[1744610912341,0.92758023,84292.0,84291.0,1e-06]
[1744610912342,1.03379835,84292.0,84291.0,1e-06]
[1744610912542,1.00006562,84292.0,84291.0,1e-06]
[1744610913268,0.99906562,84292.0,84291.0,1e-06]
[1744610913428,0.624747,84278.0,84277.0,0.0004226]
[1744610913628,0.90594854,84278.0,84277.0,0.0004226]
[1744610914444,1.32188623,84278.0,84277.0,0.0004226]
[1744610914843,1.32288623,84278.0,84277.0,0.0004226]
[1744610915448,1.33382302,84278.0,84277.0,0.0004226]
[1744610915670,1.46909235,84278.0,84277.0,6e-07]
[1744610915885,0.57707,84268.0,84267.0,8.9e-07]
[1744610916039,1.16274923,84268.0,84267.0,8.9e-07]
[1744610917201,1.18972176,84268.0,84267.0,8.9e-07]
[1744610917403,1.17418091,84268.0,84267.0,8.9e-07]
[1744610917778,0.529879,84264.0,84261.0,0.002]
[1744610917977,0.65072054,84264.0,84261.0,0.002]
[1744610918511,0.66168841,84264.0,84261.0,0.002]
[1744610919038,0.66368841,84264.0,84261.0,0.002]
[1744610920884,0.66568841,84264.0,84261.0,0.002]
[1744610921111,1.10354463,84264.0,84261.0,0.002]
[1744610921315,1.26394463,84264.0,84261.0,0.002]
[1744610921646,0.43090556,84264.0,84261.0,0.013867]
[1744610921872,0.58033769,84264.0,84261.0,0.013867]
[1744610922052,0.92033769,84264.0,84261.0,0.002]
[1744610922380,0.91833769,84264.0,84261.0,0.013867]
[1744610922571,0.57933769,84264.0,84261.0,0.013867]
[1744610922732,0.57733769,84264.0,84261.0,0.002]
[1744610922915,0.57733769,84264.0,84263.0,0.0084207]
[1744610923137,0.57833769,84264.0,84263.0,0.0004226]
[1744610923457,0.57733769,84264.0,84263.0,0.0004226]
[1744610923662,0.76721669,84264.0,84263.0,0.00840223]
[1744610923891,0.76821669,84264.0,84263.0,0.0004226]
[1744610924453,0.60781669,84264.0,84263.0,0.0004226]
[1744610925056,0.41793769,84264.0,84263.0,0.0004226]
[1744610925252,0.41793769,84264.0,84263.0,0.008388]
[1744610926139,0.61693769,84264.0,84263.0,0.008388]
[1744610927049,0.201,84264.0,84263.0,0.0004226]
[1744610927480,0.66421077,84264.0,84263.0,0.0004226]
[1744610927633,0.66184154,84264.0,84263.0,0.0004226]
[1744610928003,0.66084154,84264.0,84263.0,0.0004226]
[1744610928244,0.66084154,84264.0,84263.0,0.0014226]
[1744610931599,0.67180769,84264.0,84263.0,0.0014226]
[1744610932006,0.67180769,84264.0,84263.0,0.0004226]
[1744610932522,0.67880769,84264.0,84263.0,0.0004226]
[1744610932895,1.09474538,84264.0,84263.0,0.0004226]
[1744610933470,1.25518538,84264.0,84263.0,0.0004226]
[1744610934369,1.24421923,84264.0,84263.0,0.0004226]
[1744610934682,1.24021923,84264.0,84263.0,0.0004226]
[1744610934906,1.24321923,84264.0,84263.0,0.0004226]
[1744610935551,1.24021923,84264.0,84263.0,0.0004226]
[1744610935704,1.24221923,84264.0,84263.0,0.0004226]
[1744610936349,1.08177923,84264.0,84263.0,0.0004226]
[1744610936673,1.12137769,84264.0,84263.0,0.0004226]
[1744610937573,0.77837769,84264.0,84263.0,0.0004226]
[1744610937939,0.61593769,84264.0,84263.0,0.0004226]
[1744610938459,0.189881,84263.0,84254.0,0.189901]
[1744610938765,0.189881,84263.0,84257.0,0.189892]
[1744610939124,0.011868,84258.0,84253.0,0.201772]
[1744610939346,0.00236923,84257.0,84247.0,0.011869]
[1744610939562,0.011869,84251.0,84244.0,0.0125624]
[1744610939745,0.189922,84245.0,84244.0,0.0125624]
[1744610940311,0.00236923,84246.0,84244.0,0.0125624]
[1744610940758,0.00236923,84246.0,84245.0,0.00791434]
[1744610940963,0.12321077,84246.0,84245.0,0.00791434]
[1744610941164,0.201788,84247.0,84245.0,0.00791434]
[1744610941405,0.00236923,84246.0,84244.0,0.0125624]
[1744610941604,0.42780669,84250.0,84244.0,0.0125624]
[1744610941724,0.011869,84249.0,84245.0,0.01978434]
[1744610941924,0.42780669,84250.0,84247.0,0.011869]
[1744610941925,0.41593769,84250.0,84247.0,0.011869]
[1744610942218,0.41593769,84250.0,84248.0,0.00796153]
[1744610942776,0.41593769,84262.0,84253.0,0.20177]
[1744610943078,0.41593769,84262.0,84255.0,0.011868]
[1744610943079,0.351868,84259.0,84255.0,0.011868]
[1744610943276,0.41593769,84262.0,84260.0,0.189888]
[1744610943627,0.41593769,84262.0,84261.0,0.00799001]
[1744610944046,0.41693769,84262.0,84261.0,0.00799001]
[1744610944425,0.41793769,84262.0,84261.0,0.01540531]
[1744610944647,0.41893769,84262.0,84261.0,0.01540531]
[1744610944852,0.41693769,84262.0,84261.0,0.01540531]
[1744610945058,0.001,84262.0,84261.0,0.06440531]
[1744610945254,0.003,84262.0,84261.0,0.06440531]
[1744610945460,0.003,84262.0,84261.0,0.18524685]
[1744610945899,0.002,84262.0,84261.0,0.18524685]
[1744610946433,0.002,84262.0,84261.0,0.01540531]
[1744610946559,0.00046381,84268.0,84263.0,0.011867]
[1744610946762,0.00046381,84268.0,84265.0,0.011867]
[1744610947093,0.00046381,84268.0,84266.0,0.01531506]
[1744610947477,0.00046381,84268.0,84267.0,0.0074153]
[1744610947680,0.19270304,84268.0,84267.0,0.0074153]
[1744610948063,0.189881,84263.0,84262.0,0.0074153]
[1744610948306,0.189881,84263.0,84262.0,0.01529955]
[1744610948527,0.011867,84265.0,84262.0,0.0074153]
[1744610948693,0.01232981,84268.0,84262.0,0.01529957]
[1744610948896,0.00046381,84268.0,84265.0,0.011867]
[1744610949147,0.20220181,84268.0,84264.0,0.011867]
[1744610949280,0.20220181,84268.0,84265.0,0.0074153]
[1744610949484,0.189874,84266.0,84265.0,0.01531025]
[1744610949919,0.189874,84266.0,84265.0,0.0074153]
[1744610950316,0.189874,84266.0,84265.0,0.01530026]
[1744610950516,0.189874,84266.0,84265.0,0.0074153]
[1744610950742,0.189874,84266.0,84265.0,0.01530026]
[1744610950961,0.189874,84266.0,84265.0,0.0074153]
[1744610951114,0.189874,84266.0,84265.0,0.01530026]
[1744610951327,0.189874,84266.0,84265.0,0.0074153]
[1744610951834,0.19224323,84266.0,84265.0,0.0074153]
[1744610952404,0.201761,84258.0,84255.0,0.0074153]
[1744610952854,0.201761,84258.0,84256.0,0.01529285]
[1744610953044,0.011868,84258.0,84256.0,0.01529285]
[1744610953226,0.011868,84258.0,84257.0,0.0074153]
[1744610953604,0.011868,84258.0,84257.0,0.0152964]
[1744610954506,0.011868,84258.0,84257.0,0.0162964]
[1744610956263,0.20176,84258.0,84257.0,0.0192964]
[1744610956783,0.201758,84260.0,84257.0,0.0192964]
[1744610957088,0.201758,84260.0,84258.0,0.0074153]
[1744610957247,0.201758,84260.0,84259.0,0.0074153]
[1744610957593,0.201758,84260.0,84259.0,0.01530352]
[1744610957751,0.201758,84260.0,84259.0,0.0074153]
[1744610957946,0.201758,84260.0,84259.0,0.01530352]
[1744610958159,0.201758,84260.0,84259.0,0.0074153]
[1744610958357,0.201758,84260.0,84259.0,0.01530352]
[1744610958557,0.011867,84264.0,84259.0,0.0074153]
[1744610958759,0.011867,84264.0,84260.0,0.0074153]
[1744610958980,0.00046381,84268.0,84263.0,0.189881]
[1744610959135,0.00046381,84268.0,84267.0,0.189872]
[1744610959561,0.00046381,84268.0,84267.0,0.19776423]
[1744610960291,0.00146381,84268.0,84267.0,0.19776423]
[1744610960498,0.00146381,84268.0,84267.0,0.20517927]
[1744610962379,0.00046381,84268.0,84267.0,0.20517927]
[1744610963022,0.00046381,84268.0,84267.0,0.20917927]
[1744610963230,0.00046381,84268.0,84267.0,0.33002081]
[1744610963566,0.00046381,84268.0,84267.0,0.37632081]
[1744610968961,0.00046381,84268.0,84267.0,0.39086166]
[1744610969170,8.1e-07,84268.0,84267.0,1.14956166]
[1744610969368,8.1e-07,84268.0,84267.0,1.14856166]
[1744610969531,8.1e-07,84268.0,84267.0,1.14556166]
[1744610969869,8.1e-07,84268.0,84267.0,1.15156166]
[1744610970069,8.1e-07,84268.0,84267.0,1.14656166]
[1744610970296,8.1e-07,84268.0,84267.0,1.14556166]
[1744610970569,0.00200081,84268.0,84267.0,0.80002081]
[1744610970769,0.00200081,84268.0,84267.0,0.79202081]
[1744610970970,0.00300081,84268.0,84267.0,0.80102081]
[1744610971172,0.00300081,84268.0,84267.0,0.81556166]
[1744610971718,0.00200081,84268.0,84267.0,0.81456166]
[1744610972017,0.00300081,84268.0,84267.0,0.81856166]
[1744610972682,0.00300081,84268.0,84267.0,0.97292166]
[1744610973950,0.00300081,84268.0,84267.0,0.55422166]
[1744610975713,0.00300081,84268.0,84267.0,0.54680662]
[1744610977547,0.00300081,84268.0,84267.0,0.55421947]
[1744610985752,0.00300081,84268.0,84267.0,0.39985947]
[1744610985913,0.00300081,84268.0,84267.0,0.55421947]
[1744610986321,8.1e-07,84268.0,84267.0,1.31391947]
[1744610987354,0.0008448,84292.0,84267.0,1.31391947]
[1744610987355,0.0008448,84292.0,84291.0,0.189818]
[1744610987550,0.0008448,84292.0,84291.0,0.31065954]
[1744610987748,0.0008448,84292.0,84291.0,0.3182966]
[1744610988154,0.0008448,84292.0,84291.0,0.32570945]
[1744610988564,0.0008448,84292.0,84291.0,0.32770945]
[1744610989268,0.0008448,84292.0,84291.0,0.32870945]
[1744610991838,0.0008448,84292.0,84291.0,0.3432503]
[1744610992367,0.0008448,84292.0,84291.0,0.3422503]
[1744610992921,0.0008448,84292.0,84291.0,0.3492503]
[1744610993218,8e-07,84292.0,84291.0,0.3402503]
[1744610993421,8e-07,84292.0,84291.0,0.7324503]
[1744610994202,8e-07,84292.0,84291.0,0.7364503]
[1744610994751,8e-07,84292.0,84291.0,0.7324503]
[1744610994956,8e-07,84292.0,84291.0,0.7374503]
[1744610995140,8e-07,84292.0,84291.0,0.7304503]
[1744610995348,0.0010008,84292.0,84291.0,0.7394503]
[1744610995898,0.0010008,84292.0,84291.0,0.8937703]
[1744610996906,0.0010008,84292.0,84291.0,0.8485703]
[1744610997517,0.0010008,84292.0,84291.0,0.68683745]
[1744610997720,0.0010008,84292.0,84291.0,0.84115745]
[1744610998355,0.0010008,84292.0,84291.0,0.84856824]
[1744610999604,0.0010008,84292.0,84291.0,0.84115745]
[1744611000613,0.0010008,84292.0,84291.0,0.21145506]
[1744611000880,0.0482008,84292.0,84291.0,0.21145506]
[1744611001287,0.0482008,84292.0,84291.0,0.20645506]
[1744611002199,0.0472008,84292.0,84291.0,0.19745506]
[1744611002400,0.0472008,84292.0,84291.0,0.20245506]
[1744611002932,0.0472008,84292.0,84291.0,0.20745506]
[1744611003231,0.0472008,84292.0,84291.0,0.20245506]
[1744611003693,0.0472008,84292.0,84291.0,0.20545506]
[1744611003847,0.0472008,84292.0,84291.0,0.21286688]
[1744611006278,8e-07,84292.0,84291.0,0.33370842]
[1744611006477,8e-07,84292.0,84291.0,0.39504927]
[1744611010081,8e-07,84292.0,84291.0,0.33370842]
[1744611014285,8e-07,84292.0,84291.0,0.3262966]
[1744611017858,8e-07,84292.0,84291.0,0.33370793]
[1744611018276,8e-07,84292.0,84291.0,0.3262966]
[1744611018886,0.1898168,84292.0,84291.0,0.01563706]
[1744611019086,0.0958008,84292.0,84291.0,0.01563706]
[1744611019250,0.0958008,84292.0,84291.0,0.008]
[1744611020173,0.0958008,84292.0,84291.0,0.01553631]
[1744611022266,0.09817003,84292.0,84291.0,0.01553631]
[1744611022602,0.09817003,84292.0,84291.0,0.008]
[1744611023027,0.0958008,84292.0,84291.0,0.008]
[1744611023228,0.0958008,84292.0,84291.0,0.01556638]
[1744611024573,0.2856168,84292.0,84291.0,0.008]
[1744611024799,0.2856168,84292.0,84291.0,0.01556638]
[1744611024990,0.2856168,84292.0,84291.0,0.008]
[1744611025250,0.6256168,84292.0,84291.0,0.008]
[1744611025491,0.6256168,84292.0,84291.0,0.005]
[1744611025699,0.0464,84281.0,84278.0,0.011865]
[1744611025909,0.0464,84281.0,84275.0,0.201718]
[1744611025910,0.011865,84280.0,84275.0,0.201718]
[1744611026115,0.011865,84280.0,84279.0,0.0075749]
[1744611026257,0.011865,84280.0,84277.0,0.011865]
[1744611026600,0.011865,84280.0,84278.0,0.00757135]
[1744611026825,0.011865,84279.0,84275.0,0.201718]
[1744611027048,0.011865,84279.0,84278.0,0.001]
[1744611027347,0.011865,84280.0,84277.0,0.001]
[1744611027576,0.011865,84280.0,84277.0,0.003]
[1744611028691,0.058265,84281.0,84277.0,0.203714]
[1744611028895,0.058265,84281.0,84278.0,0.00741363]
[1744611028896,0.189845,84279.0,84278.0,0.00741363]
[1744611029055,0.248008,84280.0,84278.0,0.00741363]
[1744611029243,0.058165,84280.0,84277.0,0.002]
[1744611029492,0.058165,84280.0,84276.0,0.011865]
[1744611029645,0.058165,84280.0,84277.0,0.001]
[1744611030057,0.0463,84280.0,84277.0,0.202714]
[1744611030258,0.011865,84279.0,84276.0,0.01927863]
[1744611030495,0.011865,84279.0,84278.0,0.0076286]
[1744611030693,0.011865,84279.0,84277.0,0.00762504]
[1744611030911,0.011865,84279.0,84278.0,0.0076286]
[1744611031705,0.011865,84279.0,84276.0,0.02027863]
[1744611031924,0.011865,84279.0,84278.0,0.01033981]
[1744611032124,0.0463,84280.0,84277.0,0.02220209]
[1744611032416,0.0463,84280.0,84278.0,0.01133981]
[1744611032614,0.189845,84279.0,84278.0,0.01133981]
[1744611032828,0.0463,84280.0,84278.0,0.01133981]
[1744611033395,0.0463,84280.0,84278.0,0.01033981]
[1744611034008,0.0463,84280.0,84278.0,0.01133981]
[1744611034625,0.0463,84280.0,84278.0,0.01875344]
[1744611035493,0.0463,84280.0,84278.0,0.20859844]
[1744611035705,0.20169,84288.0,84278.0,0.20859844]
[1744611035706,0.107663,84289.0,84284.0,0.201698]
[1744611035910,0.107663,84289.0,84286.0,0.201693]
[1744611035911,0.0958,84289.0,84286.0,0.201693]
[1744611036110,8e-07,84292.0,84286.0,0.201693]
[1744611036111,8e-07,84292.0,84291.0,0.189818]
[1744611036317,8e-07,84292.0,84291.0,0.31303185]
[1744611036458,8e-07,84292.0,84291.0,0.32846085]
[1744611038294,8e-07,84292.0,84291.0,0.34055726]
[1744611038697,8e-07,84292.0,84291.0,0.40319811]
[1744611040205,8e-07,84292.0,84291.0,0.40819811]
[1744611042500,8e-07,84292.0,84291.0,0.74819811]
[1744611043149,8e-07,84292.0,84291.0,1.21649811]
[1744611043349,8e-07,84292.0,84291.0,1.21349811]
[1744611043505,8e-07,84292.0,84291.0,1.21949811]
[1744611044349,8e-07,84292.0,84291.0,1.36585811]
[1744611044556,8e-07,84292.0,84291.0,1.36885811]
[1744611044760,8e-07,84292.0,84291.0,1.36785811]
[1744611044961,8e-07,84292.0,84291.0,1.31625811]
[1744611045493,8e-07,84292.0,84291.0,1.31525811]
[1744611045678,8e-07,84292.0,84291.0,1.32225811]
[1744611046487,8e-07,84292.0,84291.0,1.32221811]
[1744611047685,6e-07,84302.0,84301.0,0.237896]
[1744611047849,6e-07,84302.0,84301.0,0.40970922]
[1744611048050,6e-07,84302.0,84301.0,0.42148698]
[1744611048854,6e-07,84302.0,84301.0,0.42158553]
[1744611049303,6e-07,84302.0,84301.0,0.32488553]
[1744611049486,6e-07,84302.0,84301.0,0.32888553]
[1744611049856,6e-07,84302.0,84301.0,0.33388553]
[1744611051803,6e-07,84302.0,84301.0,0.34842638]
[1744611052764,2e-07,84306.0,84305.0,0.64192785]
[1744611052990,0.002,84319.0,84318.0,0.189757]
[1744611053140,0.002,84319.0,84318.0,0.47583069]
[1744611053342,0.002,84319.0,84318.0,0.52185939]
[1744611053549,0.0008444,84326.0,84324.0,0.01454085]
[1744611053748,0.0008444,84326.0,84323.0,0.011859]
[1744611053749,0.0008444,84326.0,84325.0,0.55169519]
[1744611053909,4e-07,84326.0,84325.0,0.55935131]
[1744611054109,4e-07,84326.0,84325.0,0.68019285]
[1744611054369,4e-07,84326.0,84325.0,1.09889285]
[1744611054584,0.0008444,84336.0,84335.0,0.529719]
[1744611054782,0.0008444,84336.0,84335.0,1.23212139]
[1744611054914,0.0008444,84336.0,84335.0,1.25808339]
[1744611055781,0.0008444,84336.0,84335.0,1.26208339]
[1744611056564,0.0008444,84336.0,84335.0,1.26808339]